Workbook

Sheet result
B5: Вхідні дані специфікації
B6: Параметри корпусу секції
B7: Висота корпусу (KH, mm) | C7: KH
B8: Товщина верхньої панелі (K1, мм)
B9: Верхній зазор (G1, мм)
B10: Накладання фасаду (A1, мм)
B11: Товщина нижньої панелі (K2, мм)
B12: Нижній зазор (G2, мм)
B13: Накладання фасаду (A2, мм) | C13: A2
B15: Параметри фасаду
B16: Висота фасаду (FH, мм)
B17: Ширина фасаду (FW, мм)
B18: Товщина фасаду (T, мм)
B19: Щільність матеріалу фасаду
B20: Вага ручки (грам)
B21: Вага фасаду
B23: Рекомендована модель | C23: =IFERROR(INDEX(result[Модель],MATCH("Рекомендована модель",result[Коментар],0)),"") -> 
B24: Комплект, сірі заглушки | C24: =IFERROR(INDEX(calc_data[сірі заглушки],MATCH($C$23,calc_data[model],0)),"") -> 
B25: Комплект, білі заглушки | C25: =IFERROR(INDEX(calc_data[білі заглушки],MATCH($C$23,calc_data[model],0)),"") -> 
B26: Комплект, заклушки "Антрацит" | C26: =IFERROR(INDEX(calc_data[антрацит],MATCH($C$23,calc_data[model],0)),"") -> 
B28: Параметри планування
B29: Значення Y (мм) | C29: =IFERROR(INDEX(result[Y (мм)],MATCH("Рекомендована модель",result[Коментар],0)),"Y") -> Y
B30: Значення X (мм) | C30: =IFERROR(INDEX(result[X (мм)],MATCH("Рекомендована модель",result[Коментар],0)),"X") -> X
B31: Q (мм) | C31: =IFERROR(calc_step_2!C23,"Q") -> Q
B32: R (мм) | C32: =IFERROR(calc_step_2!D23,"R") -> R
B33: S (мм) | C33: =IFERROR(calc_step_2!E23,"S") -> S
B34: β (≈) | C34: =IFERROR(calc_step_2!B23,"β") -> β
B35: T (мм) | C35: =IFERROR(calc_step_2!F23,"T") -> T
B36: U (мм) | C36: =IFERROR(calc_step_2!G23,"U") -> U
B37: V (мм) | C37: =IFERROR(calc_step_2!H23,"V") -> V
B38: W (мм) | C38: =IFERROR(calc_step_2!I23,"W") -> W
B44: Це тестова версія програми. Розробник залишає за собою право вносити зміни в специфікації без додаткового попередження

Sheet calc_step_1 (hidden)
A1: ID | B1: KH (мм) | C1: FW (кг) | D1: Модель | E1: Y (мм) | F1: X (мм) | G1: Q | H1: Коментар
A2: 1 | B2: =IFERROR(INDEX(fold_calc!$S$11:$S$44,MATCH(SMALL(fold_calc!$R$11:$R$44,$A2),fold_calc!$R$11:$R$44,0)),"") ->  | C2: =IFERROR(INDEX(fold_calc!$T$11:$T$44,MATCH(SMALL(fold_calc!$R$11:$R$44,$A2),fold_calc!$R$11:$R$44,0)),"") ->  | D2: =IFERROR(INDEX(fold_calc!$O$11:$O$44,MATCH(B2&C2,fold_calc!$C$11:$C$44&fold_calc!$F$11:$F$44,0)),"") ->  | E2: =IFERROR(INDEX(fold_calc!$U$11:$U$44,MATCH(SMALL(fold_calc!$R$11:$R$44,A2),fold_calc!$R$11:$R$44,0)),"") ->  | F2: =IFERROR(INDEX(fold_calc!$V$11:$V$44,MATCH(SMALL(fold_calc!$R$11:$R$44,A2),fold_calc!$R$11:$R$44,0)),"") ->  | G2: =IFERROR(INDEX(fold_calc!$W$11:$W$44,MATCH(SMALL(fold_calc!$R$11:$R$44,A2),fold_calc!$R$11:$R$44,0)),"") ->  | H2: =IF(G2=MAX($G$2:$G$9),"Рекомендована модель","") -> 
A3: 2 | B3: =IFERROR(INDEX(fold_calc!$S$11:$S$44,MATCH(SMALL(fold_calc!$R$11:$R$44,$A3),fold_calc!$R$11:$R$44,0)),"") ->  | C3: =IFERROR(INDEX(fold_calc!$T$11:$T$44,MATCH(SMALL(fold_calc!$R$11:$R$44,$A3),fold_calc!$R$11:$R$44,0)),"") ->  | D3: =IFERROR(INDEX(fold_calc!$O$11:$O$44,MATCH(B3&C3,fold_calc!$C$11:$C$44&fold_calc!$F$11:$F$44,0)),"") ->  | E3: =IFERROR(INDEX(fold_calc!$U$11:$U$44,MATCH(SMALL(fold_calc!$R$11:$R$44,A3),fold_calc!$R$11:$R$44,0)),"") ->  | F3: =IFERROR(INDEX(fold_calc!$V$11:$V$44,MATCH(SMALL(fold_calc!$R$11:$R$44,A3),fold_calc!$R$11:$R$44,0)),"") ->  | G3: =IFERROR(INDEX(fold_calc!$W$11:$W$44,MATCH(SMALL(fold_calc!$R$11:$R$44,A3),fold_calc!$R$11:$R$44,0)),"") ->  | H3: =IF(G3=MAX($G$2:$G$9),"Рекомендована модель","") -> 
A4: 3 | B4: =IFERROR(INDEX(fold_calc!$S$11:$S$44,MATCH(SMALL(fold_calc!$R$11:$R$44,$A4),fold_calc!$R$11:$R$44,0)),"") ->  | C4: =IFERROR(INDEX(fold_calc!$T$11:$T$44,MATCH(SMALL(fold_calc!$R$11:$R$44,$A4),fold_calc!$R$11:$R$44,0)),"") ->  | D4: =IFERROR(INDEX(fold_calc!$O$11:$O$44,MATCH(B4&C4,fold_calc!$C$11:$C$44&fold_calc!$F$11:$F$44,0)),"") ->  | E4: =IFERROR(INDEX(fold_calc!$U$11:$U$44,MATCH(SMALL(fold_calc!$R$11:$R$44,A4),fold_calc!$R$11:$R$44,0)),"") ->  | F4: =IFERROR(INDEX(fold_calc!$V$11:$V$44,MATCH(SMALL(fold_calc!$R$11:$R$44,A4),fold_calc!$R$11:$R$44,0)),"") ->  | G4: =IFERROR(INDEX(fold_calc!$W$11:$W$44,MATCH(SMALL(fold_calc!$R$11:$R$44,A4),fold_calc!$R$11:$R$44,0)),"") -> 
A5: 4 | B5: =IFERROR(INDEX(fold_calc!$S$11:$S$44,MATCH(SMALL(fold_calc!$R$11:$R$44,$A5),fold_calc!$R$11:$R$44,0)),"") ->  | C5: =IFERROR(INDEX(fold_calc!$T$11:$T$44,MATCH(SMALL(fold_calc!$R$11:$R$44,$A5),fold_calc!$R$11:$R$44,0)),"") ->  | D5: =IFERROR(INDEX(fold_calc!$O$11:$O$44,MATCH(B5&C5,fold_calc!$C$11:$C$44&fold_calc!$F$11:$F$44,0)),"") ->  | E5: =IFERROR(INDEX(fold_calc!$U$11:$U$44,MATCH(SMALL(fold_calc!$R$11:$R$44,A5),fold_calc!$R$11:$R$44,0)),"") ->  | F5: =IFERROR(INDEX(fold_calc!$V$11:$V$44,MATCH(SMALL(fold_calc!$R$11:$R$44,A5),fold_calc!$R$11:$R$44,0)),"") ->  | G5: =IFERROR(INDEX(fold_calc!$W$11:$W$44,MATCH(SMALL(fold_calc!$R$11:$R$44,A5),fold_calc!$R$11:$R$44,0)),"") -> 
A6: 5 | B6: =IFERROR(INDEX(fold_calc!$S$11:$S$44,MATCH(SMALL(fold_calc!$R$11:$R$44,$A6),fold_calc!$R$11:$R$44,0)),"") ->  | C6: =IFERROR(INDEX(fold_calc!$T$11:$T$44,MATCH(SMALL(fold_calc!$R$11:$R$44,$A6),fold_calc!$R$11:$R$44,0)),"") ->  | D6: =IFERROR(INDEX(fold_calc!$O$11:$O$44,MATCH(B6&C6,fold_calc!$C$11:$C$44&fold_calc!$F$11:$F$44,0)),"") ->  | E6: =IFERROR(INDEX(fold_calc!$U$11:$U$44,MATCH(SMALL(fold_calc!$R$11:$R$44,A6),fold_calc!$R$11:$R$44,0)),"") ->  | F6: =IFERROR(INDEX(fold_calc!$V$11:$V$44,MATCH(SMALL(fold_calc!$R$11:$R$44,A6),fold_calc!$R$11:$R$44,0)),"") ->  | G6: =IFERROR(INDEX(fold_calc!$W$11:$W$44,MATCH(SMALL(fold_calc!$R$11:$R$44,A6),fold_calc!$R$11:$R$44,0)),"") -> 
A7: 6 | B7: =IFERROR(INDEX(fold_calc!$S$11:$S$44,MATCH(SMALL(fold_calc!$R$11:$R$44,$A7),fold_calc!$R$11:$R$44,0)),"") ->  | C7: =IFERROR(INDEX(fold_calc!$T$11:$T$44,MATCH(SMALL(fold_calc!$R$11:$R$44,$A7),fold_calc!$R$11:$R$44,0)),"") ->  | D7: =IFERROR(INDEX(fold_calc!$O$11:$O$44,MATCH(B7&C7,fold_calc!$C$11:$C$44&fold_calc!$F$11:$F$44,0)),"") ->  | E7: =IFERROR(INDEX(fold_calc!$U$11:$U$44,MATCH(SMALL(fold_calc!$R$11:$R$44,A7),fold_calc!$R$11:$R$44,0)),"") ->  | F7: =IFERROR(INDEX(fold_calc!$V$11:$V$44,MATCH(SMALL(fold_calc!$R$11:$R$44,A7),fold_calc!$R$11:$R$44,0)),"") ->  | G7: =IFERROR(INDEX(fold_calc!$W$11:$W$44,MATCH(SMALL(fold_calc!$R$11:$R$44,A7),fold_calc!$R$11:$R$44,0)),"") -> 
A8: 7 | B8: =IFERROR(INDEX(fold_calc!$S$11:$S$44,MATCH(SMALL(fold_calc!$R$11:$R$44,$A8),fold_calc!$R$11:$R$44,0)),"") ->  | C8: =IFERROR(INDEX(fold_calc!$T$11:$T$44,MATCH(SMALL(fold_calc!$R$11:$R$44,$A8),fold_calc!$R$11:$R$44,0)),"") ->  | D8: =IFERROR(INDEX(fold_calc!$O$11:$O$44,MATCH(B8&C8,fold_calc!$C$11:$C$44&fold_calc!$F$11:$F$44,0)),"") ->  | E8: =IFERROR(INDEX(fold_calc!$U$11:$U$44,MATCH(SMALL(fold_calc!$R$11:$R$44,A8),fold_calc!$R$11:$R$44,0)),"") ->  | F8: =IFERROR(INDEX(fold_calc!$V$11:$V$44,MATCH(SMALL(fold_calc!$R$11:$R$44,A8),fold_calc!$R$11:$R$44,0)),"") ->  | G8: =IFERROR(INDEX(fold_calc!$W$11:$W$44,MATCH(SMALL(fold_calc!$R$11:$R$44,A8),fold_calc!$R$11:$R$44,0)),"") -> 
A9: 8 | B9: =IFERROR(INDEX(fold_calc!$S$11:$S$44,MATCH(SMALL(fold_calc!$R$11:$R$44,$A9),fold_calc!$R$11:$R$44,0)),"") ->  | C9: =IFERROR(INDEX(fold_calc!$T$11:$T$44,MATCH(SMALL(fold_calc!$R$11:$R$44,$A9),fold_calc!$R$11:$R$44,0)),"") ->  | D9: =IFERROR(INDEX(fold_calc!$O$11:$O$44,MATCH(B9&C9,fold_calc!$C$11:$C$44&fold_calc!$F$11:$F$44,0)),"") ->  | E9: =IFERROR(INDEX(fold_calc!$U$11:$U$44,MATCH(SMALL(fold_calc!$R$11:$R$44,A9),fold_calc!$R$11:$R$44,0)),"") ->  | F9: =IFERROR(INDEX(fold_calc!$V$11:$V$44,MATCH(SMALL(fold_calc!$R$11:$R$44,A9),fold_calc!$R$11:$R$44,0)),"") ->  | G9: =IFERROR(INDEX(fold_calc!$W$11:$W$44,MATCH(SMALL(fold_calc!$R$11:$R$44,A9),fold_calc!$R$11:$R$44,0)),"") -> 
A19: =IFERROR(INDEX($J$2:$J$13,MATCH(SMALL(K2:K13,#REF!),K2:K13,0)),"") -> 
A21: =IFERROR(INDEX($J$2:$J$13,MATCH(SMALL(K2:K13,#REF!),K2:K13,0)),"") -> 

Sheet calc_step_2 (hidden)
A1: висота корпусу | B1: β | C1: Q | D1: R | E1: S | F1: T | G1: U | H1: V | I1: W | J1: LEN
A2: 450–480 | B2: 107–98 | C2: 1.0 | D2: 349 | E2: 313 | F2: 94–49 | G2: 93–128 | H2: 196–180 | I2: 315–343 | J2: =LEN(free_fold_data[[#This Row],[висота корпусу]]) -> 7
A3: 480–530 | B3: 107–96 | C3: 1.1 | D3: 426 | E3: 328 | F3: 100–37 | G3: 100–155 | H3: 203–186 | I3: 328–370 | J3: =LEN(free_fold_data[[#This Row],[висота корпусу]]) -> 7
A4: 520–590 | B4: 107–93 | C4: 1.1 | D4: 466 | E4: 347 | F4: 106–23 | G4: 112–184 | H4: 213–190 | I4: 347–401 | J4: =LEN(free_fold_data[[#This Row],[висота корпусу]]) -> 7
A5: 580–650 | B5: 108–95 | C5: 1.2 | D5: 589 | E5: 377 | F5: 119–40 | G5: 126–197 | H5: 227–207 | I5: 375–430 | J5: =LEN(free_fold_data[[#This Row],[висота корпусу]]) -> 7
A6: 650–730 | B6: 107–94 | C6: 1.2 | D6: 664 | E6: 409 | F6: 124–38 | G6: 147–224 | H6: 238–215 | I6: 411–470 | J6: =LEN(free_fold_data[[#This Row],[висота корпусу]]) -> 7
A7: 710–790 | B7: 108–95 | C7: 1.2 | D7: 736 | E7: 439 | F7: 136–46 | G7: 161–233 | H7: 250–219 | I7: 439–500 | J7: =LEN(free_fold_data[[#This Row],[висота корпусу]]) -> 7
A8: 770–840 | B8: 108–95 | C8: 1.0 | D8: 644 | E8: 467 | F8: 146–43 | G8: 179–223 | H8: 267–200 | I8: 466–527 | J8: =LEN(free_fold_data[[#This Row],[висота корпусу]]) -> 7
A9: 840–910 | B9: 108–98 | C9: 1.2 | D9: 882 | E9: 501 | F9: 154–70 | G9: 195–248 | H9: 272–231 | I9: 502–559 | J9: =LEN(free_fold_data[[#This Row],[висота корпусу]]) -> 7
A10: 910–970 | B10: 107–98 | C10: 1.1 | D10: 865 | E10: 533 | F10: 160–78 | G10: 214–246 | H10: 282–225 | I10: 536–588 | J10: =LEN(free_fold_data[[#This Row],[висота корпусу]]) -> 7
A11: 960–1010 | B11: 107–100 | C11: 1.1 | D11: 915 | E11: 557 | F11: 170–99 | G11: 228–251 | H11: 295–240 | I11: 560–605 | J11: =LEN(free_fold_data[[#This Row],[висота корпусу]]) -> 8
A12: 1000–1040 | B12: 107–102 | C12: 1.1 | D12: 954 | E12: 576 | F12: 177–120 | G12: 239–256 | H12: 306–256 | I12: 578–616 | J12: =LEN(free_fold_data[[#This Row],[висота корпусу]]) -> 9
A14: LEN | B14: =INDEX(free_fold_data[LEN],MATCH(A17,free_fold_data[висота корпусу],0)) -> 
A15: 1 | B15: 2 | C15: 3 | D15: 4 | E15: 5 | F15: 6 | G15: 7 | H15: 8 | I15: 9
A16: висота корпусу | B16: β | C16: Q | D16: R | E16: S | F16: T | G16: U | H16: V | I16: W
A17: =INDEX(calc_step_1!$B$1:$B$9,MATCH("Рекомендована модель",calc_step_1!$H$1:$H$9,0)) ->  | B17: =VLOOKUP($A17,free_fold_data[],B15,FALSE) ->  | C17: =VLOOKUP($A17,free_fold_data[],C15,FALSE) ->  | D17: =VLOOKUP($A17,free_fold_data[],D15,FALSE) ->  | E17: =VLOOKUP($A17,free_fold_data[],E15,FALSE) ->  | F17: =VLOOKUP($A17,free_fold_data[],F15,FALSE) ->  | G17: =VLOOKUP($A17,free_fold_data[],G15,FALSE) ->  | H17: =VLOOKUP($A17,free_fold_data[],H15,FALSE) ->  | I17: =VLOOKUP($A17,free_fold_data[],I15,FALSE) -> 
A18: =IF($B$14=9,LEFT(A17,4),IF(OR($B$14=8,$B$14=7),LEFT(A17,3),)) ->  | B18: =LEFT(B17,3) ->  | F18: =LEFT(F17,3) ->  | G18: =LEFT(G17,3) -> 
A19: =IF($B$14=9,RIGHT(A17,4),IF($B$14=8,RIGHT(A17,4),IF($B$14=7,RIGHT(A17,3)))) ->  | B19: =RIGHT(B17,LEN(B17)-4) ->  | F19: =RIGHT(F17,LEN(F17)-4) ->  | G19: =RIGHT(G17,LEN(G17)-4) -> 
A20: =A19-A18 ->  | B20: =B18-B19 ->  | F20: =F18-F19 ->  | G20: =G18-G19 -> 
A21: Q | B21: =B20/$A$20 ->  | F21: =F20/$A$20 ->  | G21: =G20/$A$20 -> 
A22: =A23-A18 ->  | B22: =B21*$A$22 ->  | F22: =F21*$A$22 ->  | G22: =G21*$A$22 -> 
A23: =result!C7 -> KH | B23: =ROUND(B18-B22,)&"°" ->  | C23: =C17 ->  | D23: =D17 ->  | E23: =E17 ->  | F23: =ROUND(F18-F22,) ->  | G23: =ROUND(G18-G22,) ->  | L23: ~

Sheet fold_calc (hidden)
C2: K top | D2: =result!C8 -> 0мм
C3: K bottom | D3: =result!C11 -> 0мм
C4: KH | D4: =result!C7 -> KH
C5: FW | D5: =result!C21 -> 0.00кг
C6: A1 | D6: =result!C13 -> A2
C8: 1 | D8: 2 | E8: 3 | F8: 4 | G8: 5 | H8: 6 | I8: 7 | J8: 8 | K8: 9 | L8: 10 | M8: 11 | N8: 12 | O8: 13 | P8: 14 | Q8: 15 | R8: 15 | S8: TRUE | T8: 4
B10: KG | C10: KH | D10: KH min | E10: KH max | F10: FW | G10: FW min | H10: FW max | I10: Q | J10: R | K10: S | L10: сірі заглушки | M10: білі заглушки | N10: антрацит | O10: model | P10: ціна | Q10: індекс | R10: SMALL(fx) | S10: KH2 | T10: FW2 | U10: Y | V10: X | W10: Q2 | X10: Qmin | Y10: Qmax
B11: =AND($D$4>=$D11,$D$4<=$E11,$D$5<=$H11,$D$5>=$G11) -> FALSE | C11: 480–530 | D11: 480 | E11: 530 | F11: 2,6–5,2 | G11: 2.6 | H11: 5.2 | I11: =VLOOKUP(C11,calc_step_2!$A:$D,3,FALSE) -> 1.1 | J11: =VLOOKUP(C11,calc_step_2!$A:$D,4,FALSE) -> 426 | K11: =VLOOKUP(C11,calc_step_2!$A:$E,5,FALSE) -> 328 | L11: 372.37.510 | M11: 372.37.710 | N11: 372.37.300 | O11: C1fo | Q11: 1 | R11: =IF($S11="","",VLOOKUP($S11,$C11:$Q11,R$8,FALSE)) ->  | S11: =IF(B11=$S$8,VLOOKUP($S$8,B11:P11,2,FALSE),"") ->  | T11: =IF($S11="","",VLOOKUP($S11,$C11:$P11,T$8,FALSE)) ->  | U11: =IF($S11="","",(I11*$D$4)-J11-$D$2) ->  | V11: =IF($S11="","",$D$4-U11-K11-($D$2+$D$3)+$D$6) ->  | W11: =IF(R11="","",((1-G11/$D$5)+(1-$D$5/H11))/2) ->  | X11: =IF(R11="","",(1-G11/$D$5)) ->  | Y11: =IF(R11="","",(1-$D$5/H11)) -> 
B12: =AND($D$4>=$D12,$D$4<=$E12,$D$5<=$H12,$D$5>=$G12) -> FALSE | C12: 480–530 | D12: 480 | E12: 530 | F12: 5,2–10,6 | G12: 5.2 | H12: 10.6 | I12: =VLOOKUP(C12,calc_step_2!$A:$D,3,FALSE) -> 1.1 | J12: =VLOOKUP(C12,calc_step_2!$A:$D,4,FALSE) -> 426 | K12: =VLOOKUP(C12,calc_step_2!$A:$E,5,FALSE) -> 328 | L12: 372.37.512 | M12: 372.37.712 | N12: 372.37.301 | O12: C3fo | Q12: 2
B13: FALSE | C13: 480–530 | D13: 480 | E13: 530 | F13: 7,8–15,1 | G13: 7.8 | H13: 15.1 | I13: =VLOOKUP(C13,calc_step_2!$A:$D,3,FALSE) -> 1.1 | J13: =VLOOKUP(C13,calc_step_2!$A:$D,4,FALSE) -> 426 | K13: =VLOOKUP(C13,calc_step_2!$A:$E,5,FALSE) -> 328 | L13: 372.37.513 | M13: 372.37.713 | N13: 372.37.302 | O13: C4fo | Q13: 3
B14: FALSE | C14: 520–590 | D14: 520 | E14: 590 | F14: 2,4–4,9 | G14: 2.4 | H14: 4.9 | I14: =VLOOKUP(C14,calc_step_2!$A:$D,3,FALSE) -> 1.1 | J14: =VLOOKUP(C14,calc_step_2!$A:$D,4,FALSE) -> 466 | K14: =VLOOKUP(C14,calc_step_2!$A:$E,5,FALSE) -> 347 | L14: 372.37.520 | M14: 372.37.720 | N14: 372.37.303 | O14: D1fo | Q14: 4
B15: FALSE | C15: 520–590 | D15: 520 | E15: 590 | F15: 4,8–9,8 | G15: 4.8 | H15: 9.8 | I15: =VLOOKUP(C15,calc_step_2!$A:$D,3,FALSE) -> 1.1 | J15: =VLOOKUP(C15,calc_step_2!$A:$D,4,FALSE) -> 466 | K15: =VLOOKUP(C15,calc_step_2!$A:$E,5,FALSE) -> 347 | L15: 372.37.522 | M15: 372.37.722 | N15: 372.37.304 | O15: D3fo | Q15: 5
B16: FALSE | C16: 520–590 | D16: 520 | E16: 590 | F16: 7,2–14,1 | G16: 7.2 | H16: 14.1 | I16: =VLOOKUP(C16,calc_step_2!$A:$D,3,FALSE) -> 1.1 | J16: =VLOOKUP(C16,calc_step_2!$A:$D,4,FALSE) -> 466 | K16: =VLOOKUP(C16,calc_step_2!$A:$E,5,FALSE) -> 347 | L16: 372.37.523 | M16: 372.37.723 | N16: 372.37.305 | O16: D4fo | Q16: 6
B17: =AND($D$4>=$D17,$D$4<=$E17,$D$5<=$H17,$D$5>=$G17) -> FALSE | C17: 520–590 | D17: 520 | E17: 590 | F17: 11,8–23,30 | G17: 11.8 | H17: 23.3 | I17: =VLOOKUP(C17,calc_step_2!$A:$D,3,FALSE) -> 1.1 | J17: =VLOOKUP(C17,calc_step_2!$A:$D,4,FALSE) -> 466 | K17: =VLOOKUP(C17,calc_step_2!$A:$E,5,FALSE) -> 347 | L17: 372.37.524 | M17: 372.37.724 | N17: 372.37.328 | O17: D5fo | Q17: 7
B18: FALSE | C18: 580–650 | D18: 580 | E18: 650 | F18: 2,2–4,4 | G18: 2.2 | H18: 4.4 | I18: =VLOOKUP(C18,calc_step_2!$A:$D,3,FALSE) -> 1.2 | J18: =VLOOKUP(C18,calc_step_2!$A:$D,4,FALSE) -> 589 | K18: =VLOOKUP(C18,calc_step_2!$A:$E,5,FALSE) -> 377 | L18: 372.37.530 | M18: 372.37.730 | N18: 372.37.306 | O18: E1fo | Q18: 8
B19: FALSE | C19: 580–650 | D19: 580 | E19: 650 | F19: 4,3–8,8 | G19: 4.3 | H19: 8.8 | I19: =VLOOKUP(C19,calc_step_2!$A:$D,3,FALSE) -> 1.2 | J19: =VLOOKUP(C19,calc_step_2!$A:$D,4,FALSE) -> 589 | K19: =VLOOKUP(C19,calc_step_2!$A:$E,5,FALSE) -> 377 | L19: 372.37.532 | M19: 372.37.732 | N19: 372.37.307 | O19: E3fo | Q19: 9
B20: FALSE | C20: 580–650 | D20: 580 | E20: 650 | F20: 6,0–12,2 | G20: 6.0 | H20: 12.2 | I20: =VLOOKUP(C20,calc_step_2!$A:$D,3,FALSE) -> 1.2 | J20: =VLOOKUP(C20,calc_step_2!$A:$D,4,FALSE) -> 589 | K20: =VLOOKUP(C20,calc_step_2!$A:$E,5,FALSE) -> 377 | L20: 372.37.533 | M20: 372.37.733 | N20: 372.37.308 | O20: E4fo | Q20: 10
B21: FALSE | C21: 580–650 | D21: 580 | E21: 650 | F21: 10,6–20,9 | G21: 10.6 | H21: 20.9 | I21: =VLOOKUP(C21,calc_step_2!$A:$D,3,FALSE) -> 1.2 | J21: =VLOOKUP(C21,calc_step_2!$A:$D,4,FALSE) -> 589 | K21: =VLOOKUP(C21,calc_step_2!$A:$E,5,FALSE) -> 377 | L21: 372.37.534 | M21: 372.37.734 | N21: 372.37.309 | O21: E5fo | Q21: 11
B22: FALSE | C22: 650–730 | D22: 650 | E22: 730 | F22: 3,9–4,0 | G22: 1.9 | H22: 4.0 | I22: =VLOOKUP(C22,calc_step_2!$A:$D,3,FALSE) -> 1.2 | J22: =VLOOKUP(C22,calc_step_2!$A:$D,4,FALSE) -> 664 | K22: =VLOOKUP(C22,calc_step_2!$A:$E,5,FALSE) -> 409 | L22: 372.37.540 | M22: 372.37.740 | N22: 372.37.329 | O22: F1fo | Q22: 12
B23: FALSE | C23: 650–730 | D23: 650 | E23: 730 | F23: 3,9–7,9 | G23: 3.9 | H23: 7.9 | I23: =VLOOKUP(C23,calc_step_2!$A:$D,3,FALSE) -> 1.2 | J23: =VLOOKUP(C23,calc_step_2!$A:$D,4,FALSE) -> 664 | K23: =VLOOKUP(C23,calc_step_2!$A:$E,5,FALSE) -> 409 | L23: 372.37.542 | M23: 372.37.742 | N23: 372.37.310 | O23: F3fo | Q23: 13
B24: FALSE | C24: 650–730 | D24: 650 | E24: 730 | F24: 5,8–11,6 | G24: 5.8 | H24: 11.6 | I24: =VLOOKUP(C24,calc_step_2!$A:$D,3,FALSE) -> 1.2 | J24: =VLOOKUP(C24,calc_step_2!$A:$D,4,FALSE) -> 664 | K24: =VLOOKUP(C24,calc_step_2!$A:$E,5,FALSE) -> 409 | L24: 372.37.543 | M24: 372.37.743 | N24: 372.37.311 | O24: F4fo | Q24: 14
B25: FALSE | C25: 650–730 | D25: 650 | E25: 730 | F25: 9,5–18,7 | G25: 9.5 | H25: 18.7 | I25: =VLOOKUP(C25,calc_step_2!$A:$D,3,FALSE) -> 1.2 | J25: =VLOOKUP(C25,calc_step_2!$A:$D,4,FALSE) -> 664 | K25: =VLOOKUP(C25,calc_step_2!$A:$E,5,FALSE) -> 409 | L25: 372.37.544 | M25: 372.37.744 | N25: 372.37.312 | O25: F5fo | Q25: 15
B26: FALSE | C26: 710–790 | D26: 710 | E26: 790 | F26: 3,5–7,2 | G26: 3.5 | H26: 7.2 | I26: =VLOOKUP(C26,calc_step_2!$A:$D,3,FALSE) -> 1.2 | J26: =VLOOKUP(C26,calc_step_2!$A:$D,4,FALSE) -> 736 | K26: =VLOOKUP(C26,calc_step_2!$A:$E,5,FALSE) -> 439 | L26: 372.37.552 | M26: 372.37.752 | N26: 372.37.313 | O26: G3fo | Q26: 16
B27: FALSE | C27: 710–790 | D27: 710 | E27: 790 | F27: 5,2–10,3 | G27: 5.2 | H27: 10.3 | I27: =VLOOKUP(C27,calc_step_2!$A:$D,3,FALSE) -> 1.2 | J27: =VLOOKUP(C27,calc_step_2!$A:$D,4,FALSE) -> 736 | K27: =VLOOKUP(C27,calc_step_2!$A:$E,5,FALSE) -> 439 | L27: 372.37.553 | M27: 372.37.753 | N27: 372.37.314 | O27: G4fo | Q27: 17
B28: FALSE | C28: 710–790 | D28: 710 | E28: 790 | F28: 8,7–17,2 | G28: 8.7 | H28: 17.2 | I28: =VLOOKUP(C28,calc_step_2!$A:$D,3,FALSE) -> 1.2 | J28: =VLOOKUP(C28,calc_step_2!$A:$D,4,FALSE) -> 736 | K28: =VLOOKUP(C28,calc_step_2!$A:$E,5,FALSE) -> 439 | L28: 372.37.554 | M28: 372.37.754 | N28: 372.37.315 | O28: G5fo | Q28: 18
B29: FALSE | C29: 770–840 | D29: 770 | E29: 840 | F29: 3,2–6,7 | G29: 3.2 | H29: 6.7 | I29: =VLOOKUP(C29,calc_step_2!$A:$D,3,FALSE) -> 1 | J29: =VLOOKUP(C29,calc_step_2!$A:$D,4,FALSE) -> 644 | K29: =VLOOKUP(C29,calc_step_2!$A:$E,5,FALSE) -> 467 | L29: 372.37.562 | M29: 372.37.762 | N29: 372.37.330 | O29: H3fo | Q29: 19
B30: FALSE | C30: 770–840 | D30: 770 | E30: 840 | F30: 4,9–9,8 | G30: 4.9 | H30: 9.8 | I30: =VLOOKUP(C30,calc_step_2!$A:$D,3,FALSE) -> 1 | J30: =VLOOKUP(C30,calc_step_2!$A:$D,4,FALSE) -> 644 | K30: =VLOOKUP(C30,calc_step_2!$A:$E,5,FALSE) -> 467 | L30: 372.37.563 | M30: 372.37.763 | N30: 372.37.316 | O30: H4fo | Q30: 20
B31: FALSE | C31: 770–840 | D31: 770 | E31: 840 | F31: 8,0–15,5 | G31: 8.0 | H31: 15.5 | I31: =VLOOKUP(C31,calc_step_2!$A:$D,3,FALSE) -> 1 | J31: =VLOOKUP(C31,calc_step_2!$A:$D,4,FALSE) -> 644 | K31: =VLOOKUP(C31,calc_step_2!$A:$E,5,FALSE) -> 467 | L31: 372.37.564 | M31: 372.37.764 | N31: 372.37.317 | O31: H5fo | Q31: 21
B32: =AND($D$4>=$D32,$D$4<=$E32,$D$5<=$H32,$D$5>=$G32) -> FALSE | C32: 770–840 | D32: 770 | E32: 840 | F32: 12,5–20,9 | G32: 12.5 | H32: 20.9 | I32: =VLOOKUP(C32,calc_step_2!$A:$D,3,FALSE) -> 1 | J32: =VLOOKUP(C32,calc_step_2!$A:$D,4,FALSE) -> 644 | K32: =VLOOKUP(C32,calc_step_2!$A:$E,5,FALSE) -> 467 | L32: 372.37.565 | M32: 372.37.764 | N32: 372.37.332 | O32: H6fo | Q32: 22
B33: FALSE | C33: 840–910 | D33: 840 | E33: 910 | F33: 4,5–9,0 | G33: 4.5 | H33: 9.0 | I33: =VLOOKUP(C33,calc_step_2!$A:$D,3,FALSE) -> 1.2 | J33: =VLOOKUP(C33,calc_step_2!$A:$D,4,FALSE) -> 882 | K33: =VLOOKUP(C33,calc_step_2!$A:$E,5,FALSE) -> 501 | L33: 372.37.573 | M33: 372.37.773 | N33: 372.37.318 | O33: I4fo | Q33: 23
B34: =AND($D$4>=$D34,$D$4<=$E34,$D$5<=$H34,$D$5>=$G34) -> FALSE | C34: 840–910 | D34: 840 | E34: 910 | F34: 7,3–14,6 | G34: 7.3 | H34: 14.6 | I34: =VLOOKUP(C34,calc_step_2!$A:$D,3,FALSE) -> 1.2 | J34: =VLOOKUP(C34,calc_step_2!$A:$D,4,FALSE) -> 882 | K34: =VLOOKUP(C34,calc_step_2!$A:$E,5,FALSE) -> 501 | L34: 372.37.574 | M34: 372.37.774 | N34: 372.37.319 | O34: I5fo | Q34: 24
B35: =AND($D$4>=$D35,$D$4<=$E35,$D$5<=$H35,$D$5>=$G35) -> FALSE | C35: 840–910 | D35: 840 | E35: 910 | F35: 10,0–20,0 | G35: 10.0 | H35: 20.0 | I35: =VLOOKUP(C35,calc_step_2!$A:$D,3,FALSE) -> 1.2 | J35: =VLOOKUP(C35,calc_step_2!$A:$D,4,FALSE) -> 882 | K35: =VLOOKUP(C35,calc_step_2!$A:$E,5,FALSE) -> 501 | L35: 372.37.575 | M35: 372.37.775 | N35: 372.37.333 | O35: I6fo | Q35: 25
B36: FALSE | C36: 910–970 | D36: 910 | E36: 970 | F36: 4,2–8,0 | G36: 4.2 | H36: 8.0 | I36: =VLOOKUP(C36,calc_step_2!$A:$D,3,FALSE) -> 1.1 | J36: =VLOOKUP(C36,calc_step_2!$A:$D,4,FALSE) -> 865 | K36: =VLOOKUP(C36,calc_step_2!$A:$E,5,FALSE) -> 533 | L36: 372.37.583 | M36: 372.37.783 | N36: 372.37.320 | O36: J4fo | Q36: 26
B37: FALSE | C37: 910–970 | D37: 910 | E37: 970 | F37: 6,8–13,5 | G37: 6.8 | H37: 13.5 | I37: =VLOOKUP(C37,calc_step_2!$A:$D,3,FALSE) -> 1.1 | J37: =VLOOKUP(C37,calc_step_2!$A:$D,4,FALSE) -> 865 | K37: =VLOOKUP(C37,calc_step_2!$A:$E,5,FALSE) -> 533 | L37: 372.37.584 | M37: 372.37.784 | N37: 372.37.321 | O37: J5fo | Q37: 27
B38: FALSE | C38: 910–970 | D38: 910 | E38: 970 | F38: 9,50–17,9 | G38: 9.5 | H38: 17.9 | I38: =VLOOKUP(C38,calc_step_2!$A:$D,3,FALSE) -> 1.1 | J38: =VLOOKUP(C38,calc_step_2!$A:$D,4,FALSE) -> 865 | K38: =VLOOKUP(C38,calc_step_2!$A:$E,5,FALSE) -> 533 | L38: 372.37.585 | M38: 372.37.785 | N38: 372.37.334 | O38: J6fo | Q38: 28
B39: FALSE | C39: 960–1010 | D39: 960 | E39: 1010 | F39: 3,9–7,6 | G39: 3.9 | H39: 7.6 | I39: =VLOOKUP(C39,calc_step_2!$A:$D,3,FALSE) -> 1.1 | J39: =VLOOKUP(C39,calc_step_2!$A:$D,4,FALSE) -> 915 | K39: =VLOOKUP(C39,calc_step_2!$A:$E,5,FALSE) -> 557 | L39: 372.37.593 | M39: 372.37.793 | N39: 372.37.322 | O39: K4fo | Q39: 29
B40: FALSE | C40: 960–1010 | D40: 960 | E40: 1010 | F40: 6,5–12,8 | G40: 6.5 | H40: 12.8 | I40: =VLOOKUP(C40,calc_step_2!$A:$D,3,FALSE) -> 1.1 | J40: =VLOOKUP(C40,calc_step_2!$A:$D,4,FALSE) -> 915 | K40: =VLOOKUP(C40,calc_step_2!$A:$E,5,FALSE) -> 557 | L40: 372.37.594 | M40: 372.37.794 | N40: 372.37.323 | O40: K5fo | Q40: 30
B41: FALSE | C41: 960–1010 | D41: 960 | E41: 1010 | F41: 8,6–17,30 | G41: 8.6 | H41: 17.3 | I41: =VLOOKUP(C41,calc_step_2!$A:$D,3,FALSE) -> 1.1 | J41: =VLOOKUP(C41,calc_step_2!$A:$D,4,FALSE) -> 915 | K41: =VLOOKUP(C41,calc_step_2!$A:$E,5,FALSE) -> 557 | L41: 372.37.591 | M41: 372.37.791 | N41: 372.37.335 | O41: K6fo | Q41: 31
B42: =AND($D$4>=$D42,$D$4<=$E42,$D$5<=$H42,$D$5>=$G42) -> FALSE | C42: 1000–1040 | D42: 1000 | E42: 1040 | F42: 3,7–7,3 | G42: 3.7 | H42: 7.3 | I42: =VLOOKUP(C42,calc_step_2!$A:$D,3,FALSE) -> 1.1 | J42: =VLOOKUP(C42,calc_step_2!$A:$D,4,FALSE) -> 954 | K42: =VLOOKUP(C42,calc_step_2!$A:$E,5,FALSE) -> 576 | L42: 372.37.598 | M42: 372.37.798 | N42: 372.37.331 | O42: L4fo | Q42: 32
B43: FALSE | C43: 1000–1040 | D43: 1000 | E43: 1040 | F43: 6,2–12,3 | G43: 6.2 | H43: 12.3 | I43: =VLOOKUP(C43,calc_step_2!$A:$D,3,FALSE) -> 1.1 | J43: =VLOOKUP(C43,calc_step_2!$A:$D,4,FALSE) -> 954 | K43: =VLOOKUP(C43,calc_step_2!$A:$E,5,FALSE) -> 576 | L43: 372.37.599 | M43: 372.37.799 | N43: 372.37.324 | O43: L5fo | Q43: 33
B44: FALSE | C44: 1000–1040 | D44: 1000 | E44: 1040 | F44: 8,1–16,0 | G44: 8.1 | H44: 16.0 | I44: =VLOOKUP(C44,calc_step_2!$A:$D,3,FALSE) -> 1.1 | J44: =VLOOKUP(C44,calc_step_2!$A:$D,4,FALSE) -> 954 | K44: =VLOOKUP(C44,calc_step_2!$A:$E,5,FALSE) -> 576 | L44: 372.37.596 | M44: 372.37.796 | N44: 372.37.336 | O44: L6fo | Q44: 34

Sheet material_list (hidden)
A1: Тип матеріалу фасаду | B1: Kg, m3 | C1: KGmin | D1: KGmax | E1: Опис | F1: 1
A2: ДСП | B2: 620–750 | C2: 620 | D2: 750 | E2: =CONCATENATE(A2,", ",B2," кг/м3") -> ДСП, 620–750 кг/м3 | F2: 650
A3: МДФ | B3: 600–900 | C3: 600 | D3: 900 | E3: =CONCATENATE(A3,", ",B3," кг/м3") -> МДФ, 600–900 кг/м3 | F3: 770
A4: Скло | B4: 2500 | C4: 2500 | D4: 2500 | E4: =CONCATENATE(A4,", ",B4," кг/м3") -> Скло, 2500 кг/м3 | F4: 2500
A5: Фанера (береза) | E5: =CONCATENATE(A5,", ",B5," кг/м3") -> Фанера (береза), кг/м3 | F5: 750
A6: Фанера (хвоя) | B6: 500–800 | C6: 500 | D6: 800 | E6: =CONCATENATE(A6,", ",B6," кг/м3") -> Фанера (хвоя), 500–800 кг/м3 | F6: 650
